{"text_format":"3","workbook":"xlsx","n_sheets":1,"sheets":["党群部门"],"not_rendered":{"external_links":3,"defined_names":1},"read":"whole","date_system":"1900"}

{"sheet":"党群部门","index":0,"n_rows":89,"n_cols":19,"rows_kept":89,"merged":[[0,0,0,18],[1,0,3,0],[1,1,3,1],[1,2,3,2],[1,3,2,7],[1,8,1,16],[1,17,3,17],[1,18,3,18],[2,8,3,8],[2,9,3,9],[2,10,2,12],[2,13,3,13],[2,14,3,14],[2,15,3,15],[2,16,3,16],[8,0,8,2],[9,0,10,0],[9,1,10,1],[17,0,19,0],[17,1,19,1],[21,0,21,2],[22,0,25,0],[27,0,29,0],[32,0,33,0],[34,0,34,2],[35,0,37,0],[35,1,37,1],[39,0,44,0],[39,1,44,1],[45,0,47,0],[45,1,47,1],[49,0,49,2],[51,0,57,0],[58,0,63,0],[64,0,65,0],[66,0,66,2],[67,0,69,0],[67,1,69,1],[70,0,71,0],[70,1,71,1],[72,0,74,0],[72,1,74,1],[77,0,81,0],[77,1,81,1],[83,0,84,0],[83,1,84,1],[85,0,86,0],[85,1,86,1],[87,0,87,2],[88,0,88,2]]}
["2020年通辽市事业单位综合类岗位公开招聘岗位表（党群部门）"]
["招聘\n单位","单位\n类别","岗位\n名称","招聘人数",{"$nulls":4},"岗位招聘条件",{"$nulls":8},"招聘单位联系电话","备注"]
[{"$nulls":8},"学历","学位","专业",null,null,"执业\n资格","户籍","其他条件","是否允许二学位专业报考"]
[{"$nulls":3},"合计","普通岗位","项目生","高校毕业生","蒙汉兼通",null,null,"专科","本科","研究生"]
["通辽市新时代文明实践指导中心","公益一类","财务",1,1,{"$nulls":3},"普通高校全日制大学本科及以上","学士及以上",null,"会计学、财务管理、审计学","会计学、财务管理","持有初级及以上会计专业技术资格证书","通辽市","具有2年以上财务工作经验","否","0475-8836881"]
["通辽市非公经济服务中心","公益一类","职员",1,1,{"$nulls":3},"普通高校全日制大学本科及以上","不限",null,"会计学、财务管理、工商管理、资产评估、审计学","会计学、工商管理、资产评估","不限","内蒙古自治区","1.具有2年以上工作经历；\n2.有一定的写作基础","是","0475-8835418"]
["通辽市委巡察工作资料档案室","公益一类","文字综合",3,2,null,null,1,"普通高校全日制大学本科及以上","不限",null,"不限","不限","不限","通辽市","1.具有2年以上工作经历；\n2.从事过文字撰写工作","否","0475-8835121"]
["通辽市接待服务中心","公益一类","接待员",1,1," ",null," ","普通高校全日制大学本科及以上","学士及以上",null,"不限","不限","不限","通辽市","1.中共党员；\n2.具有2年以上接待相关经验，需要值班值宿，适合男性报考","否","0475-8836140"]
["市直小计",null,null,{"$f":"SUM(D5:D8)","v":6},{"$f":"SUM(E5:E8)","v":5},null,null,{"$f":"SUM(H5:H8)","v":1}]
["开鲁县反腐倡廉电教中心","公益一类","职员1",2,null,null,1,1,"普通高校全日制大学本科及以上","学士及以上",null,"法学、犯罪学","法学、法学理论、刑法学、经济法学、民商法学","不限","通辽市","最低服务期限三年（含试用期）","否","0475-6212229","不同意以辅修专业报考"]
[null,null,"职员2",2,1,1,null,null,"普通高校全日制大学本科及以上","学士及以上",null,"会计学、财务管理、审计学、经济学、金融学","金融学、统计学、财政学、应用经济学、会计学","不限","不限","最低服务期限三年（含试用期）","否","0475-6212229","不同意以辅修专业报考"]
["开鲁县网络舆情监测预警服务中心","公益一类","职员",2,1,1,null,null,"普通高校全日制大学本科及以上","学士及以上",null,"公共事业管理、法学、社会学、新闻学、汉语言文学","公共管理、法学、新闻传播学、中国语言文学、社会学","不限","不限","最低服务期限五年（含试用期）","否","0475-6212229","不同意以辅修专业报考"]
["开鲁县融媒体中心","公益一类","融媒记者",1,null,null,1,null,"普通高校全日制大学本科及以上","学士及以上",null,"汉语言文学、数字媒体技术、网络工程、传播学、摄影","汉语言文字学、新闻传播学 ","不限","不限","最低服务期限五年（含试用期）","否","0475-6212229","不同意以辅修专业报考"]
["开鲁县综治中心","公益一类","职员",1,null,1,null,null,"普通高校全日制大学本科及以上","学士及以上",null,"法学、政治学与行政学、社会学、治安学、民族学","法学、宪法学与行政法学、刑法学","不限","不限","最低服务期限三年（含试用期）","否","0475-6212229","不同意以辅修专业报考"]
["开鲁县事业单位登记管理中心","公益一类","职员",1,null,1,null,null,"普通高校全日制大学本科及以上","学士及以上",null,"不限","不限","不限","不限","最低服务期限三年（含试用期）","否","0475-6212229"]
["开鲁县青少年志愿服务指导中心","公益一类","职员",1,null,null,1,null,"普通高校全日制大学本科及以上","不限",null,"不限","不限","不限","开鲁县","不限","否","0475-6212229"]
["开鲁县职工服务中心","公益一类","职员",2,null,1,null,1,"普通高校全日制大学本科及以上","不限",null,"不限","不限","不限",null,"最低服务期限三年（含试用期）","否","0475-6212229"]
["开鲁县科学技术馆","公益一类","职员1",1,null,1,null,null,"普通高校全日制大学本科及以上","不限",null,"农学、农业工程、植物保护、植物科学与技术、设施农业科学与工程","不限","不限","不限","最低服务期限三年（含试用期）","否","0475-6212229","不同意以辅修专业报考"]
[null,null,"职员2",1,null,null,1,null,"普通高校全日制大学本科及以上","不限",null,"汉语言文学、汉语言、汉语国际教育、中国少数民族语言文学、古典文献学","中国语言文学、文艺学、语言学及应用语言学、汉语言文字学、中国现当代文学","不限","不限","最低服务期限三年（含试用期）","否","0475-6212229","不同意以辅修专业报考"]
[null,null,"职员3",1,{"$nulls":3},1,"普通高校全日制大学专科及以上","不限","不限","不限","不限","不限","通辽市","不限","否","0475-6212229"]
["开鲁县巡察资料信息中心","公益一类","职员",1,null,1,null,null,"普通高校全日制大学本科及以上","学士及以上",null,"会计学、财务管理、审计学、汉语言文学、法学","金融学、财政学、会计学、法学、中国语言文学","不限","不限","最低服务期限三年（含试用期）","否","0475-6212229","不同意以辅修专业报考"]
["开鲁小计",null,null,{"$f":"SUM(D10:D21)","v":16},{"$f":"SUM(E10:E21)","v":2},{"$f":"SUM(F10:F21)","v":7},{"$f":"SUM(G10:G21)","v":4},{"$f":"SUM(H10:H21)","v":3}]
["科尔沁区融媒体中心","公益一类","专业技术1",1,null,1,null,null,"普通高校全日制大学本科及以上","不限",null,"数字媒体技术、动画、数字媒体艺术、戏剧影视美术设计、视觉传达设计","设计艺术学、美术学、艺术学","不限","不限","不限","是","0475-8319192"]
[null,"公益一类","专业技术2",1,null,1,null,null,"普通高校全日制大学本科及以上","不限",null,"广播电视编导、戏剧影视导演、影视摄影与制作、摄影、戏剧影视文学","新闻传播学类、艺术学类","不限","不限","不限","是","0475-8319192"]
[null,"公益一类","专业技术3",1,null,null,1,null,"普通高校全日制大学本科及以上","不限",null,"录音艺术、播音与主持艺术、音乐表演、音乐学、表演","新闻传播学类、艺术学类","不限","不限","不限","是","0475-8319192"]
[null,"公益一类","专业技术4",2,1,1,null,null,"普通高校全日制大学本科及以上","不限",null,"汉语言文学、汉语言、新闻学、广播电视学、广告学、传播学、网络与新媒体、编辑出版学","汉语言文字学、新闻学、广播电视艺术学、传播学","不限","不限","不限","是","0475-8319192"]
["科尔沁区电影放映管理站","公益一类","财务",1,1,{"$nulls":3},"国民教育序列大学专科及以上","不限","财务管理、会计与审计、会计","经济学类、财政学类、金融学类","财政学（含∶税收学）、金融学（含∶保险学）、劳动经济学","不限","通辽市","具有2年以上财务工作经验","否","0475-8319192"]
["科尔沁区委党校","公益一类","文秘",1,null,null,1,null,"普通高校全日制大学本科及以上","学士及以上",null,"汉语言文学、汉语言、汉语国际教育","语言学及应用语言学、汉语言文字学、中国古典文献学、中国古代文学、中国现当代文学","不限","不限","不限","否","0475-8319192"]
[null,"公益一类","教师1",1,null,null,1,null,"普通高校全日制大学本科及以上","学士及以上",null,"经济学、经济统计学、国际经济与贸易","政治经济学、经济思想史、金融学（含∶保险学）","不限","不限","不限","否","0475-8319192"]
[null,"公益一类","教师2",1,null,null,1,null,"普通高校全日制大学本科及以上","学士及以上",null,"公共事业管理、行政管理、劳动与社会保障","行政管理、教育经济与管理、社会保障","不限","通辽市","不限","否","0475-8319192"]
["科尔沁区老科技工作者协会","公益一类","科员",1," ",null,null,1,"普通高校全日制大学本科及以上","学士及以上",null,"不限","不限","不限","通辽市","不限","否","0475-8319192"]
["科尔沁区妇女儿童发展中心","公益一类","文秘",2,null,1,null,1,"普通高校全日制大学本科及以上","不限",null,"不限","不限","不限",null,"不限","是","0475-8319192"]
["科尔沁区委巡察办资料信息中心","公益一类","财会",1,1,{"$nulls":3},"普通高校全日制大学本科及以上","学士及以上",null,"财政学、会计学、财务管理、审计学","金融学、税务学、审计学、会计学","初级会计师","不限","中共党员（含预备党员）","否","0475-8319192"]
[null,"公益一类","文秘",1,1,{"$nulls":3},"普通高校全日制大学本科及以上","学士及以上",null,"汉语言文学、汉语言、新闻学","汉语言文字学、语言学及应用语言学、新闻学、语言学及应用语言学",null,"不限","中共党员（含预备党员）","否","0475-8319192"]
["科区小计",null,null,{"$f":"SUM(D23:D34)","v":14},{"$f":"SUM(E23:E34)","v":4},{"$f":"SUM(F23:F34)","v":4},{"$f":"SUM(G23:G34)","v":4},{"$f":"SUM(H23:H34)","v":2}]
["奈曼旗干部人事档案中心","公益一类","信息管理",1,null,null,1,null,"普通高校全日制大学专科及以上","不限","电子信息工程技术、计算机应用技术、计算机网络技术、计算机多媒体技术、计算机信息管理","信息工程、计算机科学与技术、软件工程、网络工程、电子信息科学与技术","通信与信息系统、计算机软件与理论、计算机应用技术、信号与信息处理、计算机系统结构",null,"不限","不限","否","0475-4211561"]
[null,null,"职员1",1,{"$nulls":3},1,"普通高校全日制大学专科及以上","不限","不限","不限","不限",null,"通辽市","不限","否","0475-4211561"]
[null,null,"职员2",1,null,1,null,null,"普通高校全日制大学专科及以上","不限","不限","不限","不限",null,"不限","不限","否","0475-4211561"]
["奈曼旗党代表联络中心","公益一类","职员",2,2,{"$nulls":3},"普通高校全日制大学专科及以上","不限","广播电视技术、影视多媒体技术、主持与播音、新闻采编与制作、新闻与传播","广播电视编导、播音与主持艺术、广播影视编导、广播电视学、网络与新媒体","新闻学、传播学、新闻与传播硕士、广播电视艺术学、教育技术学",null,"奈曼旗","不限","否","0475-4211561"]
["奈曼旗纪委监委数据信息中心","公益一类","职员1",1,null,1,null,null,"普通高校全日制大学专科及以上","不限","不限","不限","不限",null,"不限","不限","否","0475-4211561"]
[null,null,"职员2",2,{"$nulls":3},2,"普通高校全日制大学专科及以上","不限","不限","不限","不限",null,"通辽市","不限","否","0475-4211561"]
[null,null,"职员3",1,null,1,null,null,"普通高校全日制大学专科及以上","不限","会计、财务信息管理、会计电算化、会计与审计、资产评估与管理、财政","会计学、财务管理、审计学、资产评估、财政学","会计学、财政学、资产评估、审计、统计学",null,"不限","不限","否","0475-4211561"]
[null,null,"职员4",1,null,null,1,null,"普通高校全日制大学专科及以上","不限","法律文秘、法律事务、行政执行、经济法律事务、应用法制心理技术","法学、侦查学、知识产权、政治学、经济犯罪侦查、公安情报学","法律史、宪法学与行政法学、政治学、经济法学、法学理论、法律硕士",null,"不限","不限","否","0475-4211561"]
[null,null,"信息管理",1,null,1,null,null,"普通高校全日制大学专科及以上","不限","电子信息工程技术、计算机应用技术、计算机网络技术、计算机多媒体技术、计算机信息管理","信息工程、计算机科学与技术、软件工程、网络工程、电子信息科学与技术","通信与信息系统、计算机软件与理论、计算机应用技术、信号与信息处理、计算机系统结构",null,"不限","不限","否","0475-4211561"]
[null,null,"信息宣传",1,null,null,1,null,"普通高校全日制大学专科及以上","不限","广播电视技术、影视多媒体技术、现代教育技术、新闻采编与制作、新闻与传播","广播电视编导、教育技术学、新闻学、广播电视学、网络与新媒体","教育技术学、新闻学、广播电视艺术学、新闻与传播硕士、传播学",null,"不限","不限","否","0475-4211561"]
["奈曼旗委巡察数据管理室","公益一类","文秘",1,null,null,1,null,"普通高校全日制大学专科及以上","不限","汉语、文秘、语文教育、广播电视技术、主持与播音","汉语言文学、新闻学、播音与主持艺术、广播电视学、网络与新媒体","广播电视艺术学、汉语言文字学、新闻学、传播学",null,"不限","中共党员","否","0475-4211561"]
[null,null,"信息管理",1,{"$nulls":3},1,"普通高校全日制大学专科及以上","不限","电子信息工程技术、计算机应用技术、计算机网络技术、计算机多媒体技术、计算机信息管理","信息工程、计算机科学与技术、软件工程、网络工程、电子信息科学与技术","通信与信息系统、计算机软件与理论、计算机应用技术、信号与信息处理、计算机系统结构",null,"通辽市","不限","否","0475-4211561"]
[null,null,"职员",1,null,1,null,null,"普通高校全日制大学专科及以上","不限","不限","不限","不限",null,"不限","不限","否","0475-4211561"]
["奈曼旗妇女儿童服务中心","公益一类","文秘",1,null,null,1,null,"普通高校全日制大学专科及以上","不限","文秘、语文教育、汉语、综合文科教育、新闻与传播","汉语言文学、汉语言、网络与新媒体、秘书学、思想政治教育","汉语言文字学、思想政治教育、语言学及应用语言学、中国现当代文学、文艺学",null,"不限","不限","否","0475-4211561"]
["奈曼小计",null,null,{"$f":"SUM(D36:D49)","v":16},{"$f":"SUM(E36:E49)","v":2},{"$f":"SUM(F36:F49)","v":5},{"$f":"SUM(G36:G49)","v":5},{"$f":"SUM(H36:H49)","v":4}]
["扎鲁特旗网络舆情监测预警服务中心","公益一类","职员",1,null,null,1,null,"普通高校全日制大学本科及以上","不限",null,"汉语言文学、秘书学、网络与新媒体、汉语言、汉语国际教育、中国少数民族语言文学、法学、思想政治教育","汉语言文字学、中国语言文学、语言学及应用语言学、法学、思想政治教育",null,"不限","不限","否","0475-7218904"]
["扎鲁特旗融媒体中心","公益一类","技术员",1,1,{"$nulls":3},"普通高校全日制大学专科及以上","不限","机电一体化技术、广播电视技术、电气自动化技术","广播电视工程、通信工程、机械电子工程","机械电子工程、信息与通信工程",null,"扎鲁特旗","要求有2年以上工作经验","否","0475-7218904"]
[null,"公益一类","编辑记者1",1,1,{"$nulls":3},"普通高校全日制大学专科及以上","不限","新闻采编与制作、汉语、文秘","汉语言文学、新闻传播学类、广播电视编导","汉语言文字学、新闻传播学","持有记者从业资格证","不限","要求有2年以上工作经验","否","0475-7218904"]
[null,"公益一类","编辑记者2",2,{"$nulls":3},2,"普通高校全日制大学专科及以上","不限","新闻采编与制作、电视节目制作、文秘","中国少数民族语言文学（蒙古语）、新闻传播学类、广播电视编导","新闻传播学类、中国少数民族语言文学（蒙古语）",null,"通辽市","要求有2年以上工作经验","否","0475-7218904"]
[null,"公益一类","编辑制作",1,1,{"$nulls":3},"普通高校全日制大学本科及以上","学士及以上",null,"网络与新媒体、数字媒体艺术、新闻传播学类、影视摄影与制作","广播电视艺术学、新闻传播学",null,"不限","要求有2年以上工作经验","是","0475-7218904"]
[null,"公益一类","摄像记者",1,1,{"$nulls":3},"普通高校全日制大学专科及以上","不限","新闻采编与制作、摄影摄像技术、电视节目制作","影视摄影与制作、新闻传播学类、广播电视编导","广播电视艺术学、新闻传播学","持有记者从业资格证","不限","要求有2年以上工作经验；劳动强度大，经常加班","否","0475-7218904"]
[null,"公益一类","男播音员",1,{"$nulls":3},1,"普通高校全日制大学专科及以上","不限","不限","不限","不限",null,"通辽市","1.要求形象好、气质佳，音色好、声音可塑性强，口齿清晰；\n2.要求有2年以上播音主持工作经验","否","0475-7218904"]
[null,"公益一类","女播音员",1,1,{"$nulls":3},"普通高校全日制大学本科及以上","学士及以上",null,"播音与主持艺术","不限",null,"不限","1.研究生学历人员报考，本科专业必须为播音与主持艺术；\n2.要求形象好、气质佳，音色好、声音可塑性强，口齿清晰；\n3.要求有2年播音主持工作经验","否","0475-7218904"]
["扎鲁特旗旗委巡察工作资料档案室","公益一类","职员",2,null,null,2,null,"普通高校全日制大学本科及以上","学士及以上",null,"会计学、审计学、财政学、财务管理、税收学、金融学","会计学、 财政学、 财务管理、政治经济学、金融学、产业经济学",null,"通辽市","最低服务期限5年（含试用期）                            ","否","0475-7218904"]
[null,"公益一类","财务1",{"$f":"E60+F60+G60+H60","v":1},1,{"$nulls":3},"普通高校全日制大学本科及以上","学士及以上",null,"资产评估、经济学、经济统计学、财务管理、农林经济管理、金融学","会计学、财政学、财务管理、政治经济学、金融学、产业经济学",null,"通辽市","1.研究生报考本岗位的，本科专业需符合本岗位招聘的本科专业；\n2.最低服务期限5年（含试用期）                        ","否","0475-7218904"]
[null,"公益一类","财务2",1,{"$nulls":3},1,"普通高校全日制大学本科及以上","学士及以上",null,"审计学、会计学、财务管理、税收学、财政学、金融工程","会计学、财政学、财务管理、政治经济学、金融学、产业经济学",null,"通辽市","1.研究生报考本岗位的，本科专业需符合本岗位招聘的本科专业；\n2.最低服务期限5年（含试用期）                       ","否","0475-7218904"]
[null,"公益一类","文秘",2,1,1,null,null,"普通高校全日制大学本科及以上","学士及以上",null,"应用语言学、秘书学、汉语言文学、汉语言、汉语国际教育、新闻学、传播学","语言学及应用语言学、汉语言文字学、中国现当代文学、文艺学、新闻学、传播学",null,"项目生岗不限户籍，其他岗位为通辽市户籍","最低服务期限5年（含试用期）                          ","否","0475-7218904"]
[null,"公益一类","法律",1,{"$nulls":3},1,"普通高校全日制大学本科及以上","学士及以上",null,"法学、政治学与行政学、社会学、社会工作、民族学、科学社会主义","法学理论、法律史、宪法学与行政法学、经济法学、社会学、民族学\n","法律职业资格证","扎鲁特旗","最低服务期限5年（含试用期）                      ","否","0475-7218904"]
[null,"公益一类","计算机",1,1,{"$nulls":3},"普通高校全日制大学本科及以上","学士及以上",null,"计算机科学与技术、软件工程、网络工程、信息安全、智能科学与技术、空间信息与数字技术、电子与计算机工程","计算机系统结构、计算机应用技术、计算机软件与理论、通信与信息系统、信号与信息处理",null,"扎鲁特旗","最低服务期限5年（含试用期）                           ","否","0475-7218904"]
["扎鲁特旗非公有制经济服务中心","公益一类","文秘",1,null,null,1,null,"普通高校全日制大学本科及以上","不限",null,"汉语言文学、汉语言、新闻学","汉语言文字学、中国语言文学、语言学及应用语言学、法学、思想政治教育",null,"不限","不限","否","0475-7218904"]
[null,"公益一类","财务",1,null,null,1,null,"国民教育序列大学专科及以上","不限","财务管理、财务信息管理、会计电算化","财务管理、工商管理、会计学","会计学、财政学、金融学",null,"不限","不限","否","0475-7218904"]
["扎旗小计",null,null,{"$f":"SUM(D51:D66)","v":19},{"$f":"SUM(E51:E66)","v":8},{"$f":"SUM(F51:F66)","v":1},{"$f":"SUM(G51:G66)","v":5},{"$f":"SUM(H51:H66)","v":5}]
["科左中旗公务接待中心","公益一类","职员1",1,null,null,1,null,"普通高校全日制大学本科及以上","学士及以上",null,"法学、汉语言文学、汉语言、应用语言学、政治学与行政学、经济学、国民经济管理、行政管理","法学理论、宪法学与行政法学、刑法学、民商法学、诉讼法学、经济法学、环境与资源保护法学、语言学及应用语言学、汉语言文字学、政治学理论、政治经济学、行政管理",null,"不限","不限","否","0475-3219065"]
[null,null,"职员2",1,null,1,null,null,"普通高校全日制大学本科及以上","学士及以上",null,"不限","不限",null,"不限","不限","否","0475-3219065"]
[null,null,"职员3",1,{"$nulls":3},1,"普通高校全日制大学本科及以上","学士及以上",null,"法学、汉语言文学、汉语言、应用语言学、政治学与行政学、经济学、国民经济管理、行政管理","法学理论、宪法学与行政法学、刑法学、民商法学、诉讼法学、经济法学、环境与资源保护法学、语言学及应用语言学、汉语言文字学、政治学理论、政治经济学、行政管理",null,"通辽市","不限","否","0475-3219065"]
["科左中旗干部人事档案管理中心","公益一类","职员1",1,1,{"$nulls":3},"普通高校全日制大学本科及以上","学士及以上",null,"法学、社会学、社会工作、民族学、科学社会主义、中国共产党历史、思想政治教育、汉语言文学、汉语言、应用语言学、秘书学、档案学、信息资源管理、新闻学、传播学、公共事业管理、管理科学、信息管理与信息系统、人力资源管理、行政管理、计算机科学与技术、网络工程","法学理论、宪法学与行政法学、刑法学、民商法学、诉讼法学、马克思主义哲学、社会学、民族学、马克思主义基本原理、马克思主义发展史、马克思主义中国化研究、思想政治教育、语言学及应用语言学、汉语言文字学、档案学、新闻学、传播学、管理科学与工程、行政管理、计算机系统结构、计算机软件与理论、计算机应用技术",null,"不限","中共党员","否","0475-3219065"]
[null,null,"职员2",1,null,1,null,null,"普通高校全日制大学本科及以上","学士及以上",null,"法学、社会学、社会工作、民族学、科学社会主义、中国共产党历史、思想政治教育、汉语言文学、汉语言、应用语言学、秘书学、档案学、信息资源管理、新闻学、传播学、公共事业管理、管理科学、信息管理与信息系统、人力资源管理、行政管理、计算机科学与技术、网络工程","法学理论、宪法学与行政法学、刑法学、民商法学、诉讼法学、马克思主义哲学、社会学、民族学、马克思主义基本原理、马克思主义发展史、马克思主义中国化研究、思想政治教育、语言学及应用语言学、汉语言文字学、档案学、新闻学、传播学、管理科学与工程、行政管理、计算机系统结构、计算机软件与理论、计算机应用技术",null,"不限","中共党员","否","0475-3219065"]
["科左中旗新时代文明实践中心","公益一类","职员1",1,null,null,1,null,"普通高校全日制大学本科及以上","学士及以上",null,"汉语言文学、汉语言、应用语言学、秘书学","语言学及应用语言学、汉语言文字学",null,"不限","不限","否","0475-3219065"]
[null,null,"职员2",1,null,1,null,null,"普通高校全日制大学本科及以上","学士及以上",null,"汉语言文学、汉语言、应用语言学、秘书学","语言学及应用语言学、汉语言文字学",null,"不限","不限","否","0475-3219065"]
[null,null,"职员3",1,null,1,null,null,"普通高校全日制大学本科及以上","学士及以上",null,"新闻学、广播电视学、广播电视编导、传播学、编辑出版学","新闻学、广播电视艺术学、传播学",null,"不限","不限","否","0475-3219065"]
["科左中旗电影放映管理站","公益一类","技术员",1,{"$nulls":3},1,"普通高校全日制大学本科及以上","学士及以上",null,"计算机科学与技术、软件工程、网络工程、信息安全、物联网工程、数字媒体技术、智能科学与技术、空间信息与数字技术、电子与计算机工程、信息管理与信息系统","计算机系统结构、计算机软件与理论、计算机应用技术",null,"通辽市","不限","否","0475-3219065"]
["科左中旗融媒体中心","公益一类","职员",1,null,null,1,null,"普通高校全日制大学本科及以上","学士及以上",null,"新闻学、广播电视学、广告学、传播学、 编辑出版学、网络与新媒体、数字媒体艺术、艺术设计学、广播电视编导、动画、影视摄影与制作、广播电视工程、电子信息工程、 电子科学与技术、通信工程、信息工程、电子信息科学与技术","新闻学、传播学、设计艺术学、广播电视艺术学、电路与系统、通信与信息系统",null,"不限","不限","否","0475-3219065"]
["科左中旗巡察工作资料信息室","公益一类","职员1",1,null,null,1,null,"普通高校全日制大学本科及以上","学士及以上",null,"法学、汉语言文学、汉语言、政治学与行政学、经济学、国民经济管理、新闻学、传播学、历史学、世界史","法学理论、宪法学与行政法学、刑法学、民商法学、诉讼法学、经济法学、环境与资源保护法学、语言学及应用语言学、汉语言文字学、政治学理论、政治经济学、新闻学、传播学、史学理论及史学史、中国古代史、中国近现代史、世界史",null,"不限",null,"否","0475-3219065"]
[null,null,"职员2",1,null,1,null,null,"普通高校全日制大学本科及以上","学士及以上",null,"法学、汉语言文学、汉语言、政治学与行政学、经济学、国民经济管理、新闻学、传播学、历史学、世界史","法学理论、宪法学与行政法学、刑法学、民商法学、诉讼法学、经济法学、环境与资源保护法学、语言学及应用语言学、汉语言文字学、政治学理论、政治经济学、新闻学、传播学、史学理论及史学史、中国古代史、中国近现代史、世界史",null,"不限",null,"否","0475-3219065"]
[null,null,"职员3",1,{"$nulls":3},1,"普通高校全日制大学本科及以上","学士及以上",null,"经济学、经济统计学、国民经济管理、农林经济管理、农村区域发展","政治经济学、国民经济学、区域经济学、产业经济学、管理科学与工程",null,"通辽市",null,"否","0475-3219065"]
[null,null,"财务1",1,1,{"$nulls":3},"普通高校全日制大学本科及以上","学士及以上",null,"会计学、财务管理、审计学、财政学、资产评估、法学","会计学、财政学",null,"不限",null,"否","0475-3219065"]
[null,null,"财务2",1,null,1,null,null,"普通高校全日制大学本科及以上","学士及以上",null,"会计学、财务管理、审计学、财政学、资产评估、金融学","会计学、财政学、金融学",null,"不限",null,"否","0475-3219065"]
["科左中旗科技馆","公益一类","技术员",1,null,1,null,null,"普通高校全日制大学本科及以上","学士及以上",null,"计算机科学与技术、软件工程、网络工程、信息安全、物联网工程、数字媒体技术、智能科学与技术、空间信息与数字技术、电子与计算机工程、信息管理与信息系统","计算机系统结构、计算机软件与理论、计算机应用技术",null,"不限","不限","否","0475-3219065"]
["科左中旗青少年社会工作与志愿服务指导中心","公益一类","职员",1,null," ",1," ","普通高校全日制大学本科及以上","学士及以上",null,"不限","不限",null,"不限","不限","否","0475-3219065"]
[null,null,"财务",1," ",null,null,1,"普通高校全日制大学本科及以上","学士及以上",null,"会计学、财务管理、审计学、财政学、资产评估","会计学、财政学",null,"通辽市","不限","否","0475-3219065"]
["科左中旗妇女儿童服务中心","公益一类","财务",1,null,null,1,null,"普通高校全日制大学本科及以上","学士及以上",null,"不限","不限",null,"不限","不限","否","0475-3219065"]
[null,null,"职员",1," ",1,null," ","普通高校全日制大学本科及以上","学士及以上",null,"不限","不限",null,"不限","不限","否","0475-3219065"]
["左中小计",null,null,{"$f":"SUM(D68:D87)","v":20},{"$f":"SUM(E68:E87)","v":2},{"$f":"SUM(F68:F87)","v":8},{"$f":"SUM(G68:G87)","v":6},{"$f":"SUM(H68:H87)","v":4}]
["党群部门合计",null,null,{"$f":"D9+D22+D35+D50+D67+D88","v":91},{"$f":"E9+E22+E35+E50+E67+E88","v":23},{"$f":"F9+F22+F35+F50+F67+F88","v":25},{"$f":"G9+G22+G35+G50+G67+G88","v":24},{"$f":"H9+H22+H35+H50+H67+H88","v":19}]